bitfinex-derivatives/quotes_BNBF0:USTF0_20250507
["timestamp","ask_amount","ask_price","bid_price","bid_amount"]
[1746615625427,1.012066,604.84,603.9,0.33118065]
[1746615626324,1.012066,604.83,603.9,0.33118065]
[1746615626828,1.012066,604.82,603.9,0.33118065]
[1746615627629,1.012066,604.81,603.9,0.33118065]
[1746615627925,1.012066,604.8,603.9,0.33118065]
[1746615628430,1.012066,604.79,603.9,0.33118065]
[1746615629028,1.012066,604.78,603.9,0.33118065]
[1746615629731,1.012066,604.77,603.9,0.33118065]
[1746615630532,1.012066,604.76,603.9,0.33118065]
[1746615630728,1.012066,604.75,603.9,0.33118065]
[1746615631034,1.012066,604.74,603.9,0.33118065]
[1746615631332,1.012066,604.73,603.9,0.33118065]
[1746615631529,1.012066,604.72,603.9,0.33118065]
[1746615632431,1.012066,604.71,603.9,0.33118065]
[1746615632735,1.012066,604.7,603.9,0.33118065]
[1746615633238,1.012066,604.69,603.9,0.33118065]
[1746615633737,1.012066,604.68,603.9,0.33118065]
[1746615634236,1.012066,604.67,603.9,0.33118065]
[1746615634837,1.012066,604.66,603.9,0.33118065]
[1746615635233,1.012066,604.65,603.9,0.33118065]
[1746615635637,1.012066,604.64,603.9,0.33118065]
[1746615636434,1.012066,604.63,603.9,0.33118065]
[1746615637039,1.012066,604.62,603.9,0.33118065]
[1746615637234,1.012066,604.61,603.9,0.33118065]
[1746615638041,1.012066,604.6,603.9,0.33118065]
[1746615638236,1.012066,604.59,603.9,0.33118065]
[1746615638641,1.012066,604.58,603.9,0.33118065]
[1746615639537,1.012066,604.57,603.9,0.33118065]
[1746615640041,1.012066,604.56,603.9,0.33118065]
[1746615640645,1.012066,604.55,603.9,0.33118065]
[1746615641042,1.012066,604.54,603.9,0.33118065]
[1746615641847,1.012066,604.53,603.9,0.33118065]
[1746615642144,1.012066,604.52,603.9,0.33118065]
[1746615642643,1.012066,604.51,603.9,0.33118065]
[1746615643041,1.012066,604.5,603.9,0.33118065]
[1746615643244,1.012066,604.49,603.9,0.33118065]
[1746615643848,1.012066,604.48,603.9,0.33118065]
[1746615644247,1.012066,604.47,603.9,0.33118065]
[1746615644743,1.012066,604.46,603.9,0.33118065]
[1746615645246,1.012066,604.45,603.9,0.33118065]
[1746615645847,1.012066,604.44,603.9,0.33118065]
[1746615646447,0.2878912,605.14,603.9,0.33118065]
[1746615646742,1.31511215,605.13,603.9,0.33118065]
[1746615646948,0.30390868,605.12,603.9,0.33118065]
[1746615647147,1.01120347,605.11,603.9,0.33118065]
[1746615647549,0.30390868,605.1,603.9,0.33118065]
[1746615647850,1.01120347,605.09,603.9,0.33118065]
[1746615648445,1.01120347,605.08,603.9,0.33118065]
[1746615648951,1.01120347,605.07,603.9,0.33118065]
[1746615649248,1.01120347,605.06,603.9,0.33118065]
[1746615649850,1.01120347,605.05,603.9,0.33118065]
[1746615650354,1.01120347,605.04,603.9,0.33118065]
[1746615650654,1.01120347,605.03,603.9,0.33118065]
[1746615651055,1.01120347,605.02,603.9,0.33118065]
[1746615651454,1.01120347,605.01,603.9,0.33118065]
[1746615651955,1.01120347,605.0,603.9,0.33118065]
[1746615652453,1.01120347,604.99,603.9,0.33118065]
[1746615653055,1.01120347,604.98,603.9,0.33118065]
[1746615653652,1.01120347,604.97,603.9,0.33118065]
[1746615653856,1.01120347,604.96,603.9,0.33118065]
[1746615654356,1.01120347,604.95,603.9,0.33118065]
[1746615654955,1.01120347,604.94,603.9,0.33118065]
[1746615655353,1.01120347,604.93,603.9,0.33118065]
[1746615656157,1.01120347,604.92,603.9,0.33118065]
[1746615656457,0.28783167,605.14,603.9,0.33118065]
[1746615656458,1.01120347,604.91,603.9,0.33118065]
[1746615656862,1.01120347,604.9,603.9,0.33118065]
[1746615657258,1.01120347,604.89,603.9,0.33118065]
[1746615658153,1.01120347,604.88,603.9,0.33118065]
[1746615658659,1.01120347,604.87,603.9,0.33118065]
[1746615659560,1.01120347,604.86,603.9,0.33118065]
[1746615660057,1.01120347,604.85,603.9,0.33118065]
[1746615660761,1.01120347,604.84,603.9,0.33118065]
[1746615661361,1.01120347,604.83,603.9,0.33118065]
[1746615661563,1.01120347,604.82,603.9,0.33118065]
[1746615662358,1.01120347,604.81,603.9,0.33118065]
[1746615662862,1.01120347,604.8,603.9,0.33118065]
[1746615663664,1.01120347,604.79,603.9,0.33118065]
[1746615664459,1.01120347,604.78,603.9,0.33118065]
[1746615665161,1.01120347,604.77,603.9,0.33118065]
[1746615665863,1.01120347,604.76,603.9,0.33118065]
[1746615666059,1.01120347,604.76,603.9,1.08318065]
[1746615666463,1.01120347,604.75,603.9,1.08318065]
[1746615667162,1.01120347,604.74,603.9,1.08318065]
[1746615667358,1.01120347,604.73,603.9,1.08318065]
[1746615667966,1.01120347,604.72,603.9,1.08318065]
[1746615668662,1.01120347,604.71,603.9,1.95818065]
[1746615669366,1.01120347,604.7,603.9,1.95818065]
[1746615669564,1.01120347,604.7,603.9,2.78218065]
[1746615669862,1.01120347,604.69,603.9,2.78218065]
[1746615670467,1.01120347,604.68,603.9,2.78218065]
[1746615670967,1.01120347,604.67,603.9,3.49218065]
[1746615671369,1.01120347,604.66,603.9,3.49218065]
[1746615671969,1.01120347,604.65,603.9,3.49218065]
[1746615672769,1.01120347,604.64,603.9,3.49218065]
[1746615673164,1.01120347,604.63,603.9,3.49218065]
[1746615673363,1.01120347,604.62,603.9,3.49218065]
[1746615673870,1.01120347,604.61,603.9,3.49218065]
[1746615674367,1.01120347,604.6,603.9,3.49218065]
[1746615675073,1.01120347,604.59,603.9,3.49218065]
[1746615675569,1.01120347,604.58,603.9,3.49218065]
[1746615676174,1.01120347,604.57,603.9,3.49218065]
[1746615676475,1.01120347,604.56,603.9,3.49218065]
[1746615676972,1.01120347,604.55,603.9,3.49218065]
[1746615677475,1.01120347,604.54,603.9,3.49218065]
[1746615678076,1.01120347,604.53,603.9,2.74018065]
[1746615678477,1.01120347,604.52,603.9,2.74018065]
[1746615679178,1.01120347,604.51,603.9,2.74018065]
[1746615679672,1.01120347,604.5,603.9,2.74018065]
[1746615680378,1.01120347,604.49,603.9,2.74018065]
[1746615680777,1.01120347,604.48,603.9,2.74018065]
[1746615681178,1.01120347,604.47,603.9,2.74018065]
[1746615682272,1.01120347,604.47,603.9,2.03018065]
[1746615685982,1.01120347,604.46,603.9,2.03018065]
[1746615686481,1.01120347,604.45,603.9,2.03018065]
[1746615687082,1.01120347,604.44,603.9,2.03018065]
[1746615687784,1.01120347,604.43,603.9,2.03018065]
[1746615688385,1.01120347,604.42,603.9,2.03018065]
[1746615688781,1.01120347,604.41,603.9,2.03018065]
[1746615689085,1.01120347,604.4,603.9,2.03018065]
[1746615689385,1.01120347,604.39,603.9,2.03018065]
[1746615689785,1.01120347,604.38,603.9,2.03018065]
[1746615690387,1.01120347,604.37,603.9,2.03018065]
[1746615690684,0.28792454,605.0,603.9,2.03018065]
[1746615690989,0.33033281,605.45,603.9,2.03018065]
[1746615691188,1.01163385,605.44,603.9,2.03018065]
[1746615691385,0.2878031,605.0,603.9,2.03018065]
[1746615691789,1.01163385,605.44,603.9,2.03018065]
[1746615691983,1.01163385,604.99,603.9,2.03018065]
[1746615692286,1.01163385,604.98,603.9,2.03018065]
[1746615692790,0.28785786,605.0,603.9,2.03018065]
[1746615692791,1.01163385,604.97,603.9,2.03018065]
[1746615693385,1.01163385,604.96,603.9,2.03018065]
[1746615693692,1.01163385,604.95,603.9,2.03018065]
[1746615694289,1.01163385,604.94,603.9,2.03018065]
[1746615694692,1.01163385,604.93,603.9,2.03018065]
[1746615695594,1.01163385,604.92,603.9,2.03018065]
[1746615695995,1.01163385,604.91,603.9,2.03018065]
[1746615696296,1.01163385,604.9,603.9,2.03018065]
[1746615696895,1.01163385,604.89,603.9,2.03018065]
[1746615697196,1.01163385,604.88,603.9,2.03018065]
[1746615697397,1.01163385,604.87,603.9,2.03018065]
[1746615697797,1.01163385,604.86,603.9,2.03018065]
[1746615698496,1.01163385,604.85,603.9,2.03018065]
[1746615698996,1.01163385,604.84,603.9,2.03018065]
[1746615699900,1.01163385,604.83,603.9,2.03018065]
[1746615700296,1.01163385,604.82,603.9,2.03018065]
[1746615700597,1.01163385,604.81,603.9,2.03018065]
[1746615701001,1.01163385,604.8,603.9,2.03018065]
[1746615701796,1.01163385,604.79,603.9,2.03018065]
[1746615702301,1.01163385,604.78,603.9,2.03018065]
[1746615702598,1.01163385,604.77,603.9,2.03018065]
[1746615703097,1.01163385,604.76,603.9,2.03018065]
[1746615703601,1.01163385,604.75,603.9,2.03018065]
[1746615704105,1.01163385,604.74,603.9,2.56918065]
[1746615704501,1.01163385,604.73,603.9,2.56918065]
[1746615705404,1.01163385,604.72,603.9,2.56918065]
[1746615705614,1.01163385,604.71,603.9,2.56918065]
[1746615706409,1.01163385,604.7,603.9,2.56918065]
[1746615706904,1.01163385,604.69,603.9,3.26218065]
[1746615707308,1.01163385,604.68,603.9,3.26218065]
[1746615708007,1.01163385,604.67,603.9,3.26218065]
[1746615708409,1.01163385,604.66,603.9,3.26218065]
[1746615708904,1.01163385,604.65,603.9,3.26218065]
[1746615709306,1.01163385,604.64,603.9,3.26218065]
[1746615709909,1.01163385,604.63,603.9,3.26218065]
[1746615710310,1.01163385,604.62,603.9,3.26218065]
[1746615710811,1.01163385,604.61,603.9,3.26218065]
[1746615711414,1.01163385,604.6,603.9,3.26218065]
[1746615711615,1.01163385,604.59,603.9,3.26218065]
[1746615712208,1.01163385,604.58,603.9,3.26218065]
[1746615712414,1.01163385,604.57,603.9,3.26218065]
[1746615712810,1.01163385,604.56,603.9,3.26218065]
[1746615713414,1.01163385,604.55,603.9,3.26218065]
[1746615713610,1.01163385,604.54,603.9,3.26218065]
[1746615714110,1.01163385,604.53,603.9,3.26218065]
[1746615714513,1.01163385,604.52,603.9,3.26218065]
[1746615714914,1.01163385,604.51,603.9,3.26218065]
[1746615715611,1.01163385,604.5,603.9,3.26218065]
[1746615716312,1.01163385,604.49,603.9,3.26218065]
[1746615716812,1.01163385,604.48,603.9,3.26218065]
[1746615717618,1.01163385,604.47,603.9,3.26218065]
[1746615718212,1.01163385,604.46,603.9,3.26218065]
[1746615718615,1.01163385,604.45,603.9,3.26218065]
[1746615719213,1.01163385,604.44,603.9,3.26218065]
[1746615719615,1.01163385,604.43,603.9,3.26218065]
[1746615720320,1.01163385,604.43,603.9,2.38718065]
[1746615720517,1.01163385,604.42,603.9,2.38718065]
[1746615721226,1.01163385,604.41,603.9,2.38718065]
[1746615722125,1.01163385,604.4,603.9,2.38718065]
[1746615722925,0.28794122,604.94,603.9,2.38718065]
[1746615722926,1.01163385,604.39,603.9,2.38718065]
[1746615723225,1.01163385,604.38,603.9,2.97418065]
[1746615724128,1.01163385,604.37,603.9,2.97418065]
[1746615724330,1.01163385,604.36,603.9,2.97418065]
[1746615724828,1.01163385,604.35,603.9,2.97418065]
[1746615725126,1.01163385,604.34,603.9,2.97418065]
[1746615725926,1.01163385,604.33,603.9,2.97418065]
[1746615726325,1.01163385,604.32,603.9,2.97418065]
[1746615726828,0.28794479,604.94,603.9,2.97418065]
[1746615727028,0.33033281,605.45,603.9,2.97418065]
[1746615727325,0.28780548,604.99,603.9,2.97418065]
[1746615727528,1.01305179,604.98,603.9,2.97418065]
[1746615728025,1.01305179,604.97,603.9,2.97418065]
[1746615728328,1.01305179,604.96,603.9,2.97418065]
[1746615728924,1.01305179,604.95,603.9,2.97418065]
[1746615729422,1.01305179,604.94,603.9,2.97418065]
[1746615729929,1.01305179,604.93,603.9,2.97418065]
[1746615730326,1.01305179,604.92,603.9,2.97418065]
[1746615730931,1.01305179,604.91,603.9,2.97418065]
[1746615731432,1.01305179,604.9,603.9,2.97418065]
[1746615732032,1.01305179,604.89,603.9,2.97418065]
[1746615732532,1.01305179,604.88,603.9,2.97418065]
[1746615733030,1.01305179,604.87,603.9,2.97418065]
[1746615733631,1.01305179,604.86,603.9,2.97418065]
[1746615734329,1.01305179,604.85,603.9,2.97418065]
[1746615734931,1.01305179,604.84,603.9,2.97418065]
[1746615735432,1.01305179,604.83,603.9,2.97418065]
[1746615735934,1.01305179,604.82,603.9,2.97418065]
[1746615736635,1.01305179,604.81,603.9,2.97418065]
[1746615737136,1.01305179,604.8,603.9,2.97418065]
[1746615737532,1.01305179,604.79,603.9,2.97418065]
[1746615738235,0.28785667,605.09,603.9,2.97418065]
[1746615738236,1.01305179,604.78,603.9,2.97418065]
[1746615739130,1.01305179,604.77,603.9,2.97418065]
[1746615739535,1.01305179,604.76,603.9,2.97418065]
[1746615739735,1.01305179,604.75,603.9,2.97418065]
[1746615740131,1.01305179,604.74,603.9,2.97418065]
[1746615740731,1.01305179,604.73,603.9,2.97418065]
[1746615741331,1.01305179,604.72,603.9,2.97418065]
[1746615741635,1.01305179,604.71,603.9,2.97418065]
[1746615742136,1.01305179,604.7,603.9,2.97418065]
[1746615742631,1.01305179,604.69,603.9,2.97418065]
[1746615743137,1.01305179,604.68,603.9,2.97418065]
[1746615743836,1.01305179,604.67,603.9,2.97418065]
[1746615744135,1.01305179,604.66,603.9,2.97418065]
[1746615744536,1.01305179,604.65,603.9,2.97418065]
[1746615744838,1.01305179,604.64,603.9,2.97418065]
[1746615745232,1.01305179,604.63,603.9,2.97418065]
[1746615745539,1.01305179,604.62,603.9,2.97418065]
[1746615747540,1.01305179,604.61,603.9,2.97418065]
[1746615747840,1.01305179,604.6,603.9,2.97418065]
[1746615748336,1.01305179,604.59,603.9,2.97418065]
[1746615748740,1.01305179,604.58,603.9,2.97418065]
[1746615749641,1.01305179,604.57,603.9,2.97418065]
[1746615750137,1.01305179,604.56,603.9,2.97418065]
[1746615750943,1.01305179,604.55,603.9,2.97418065]
[1746615751545,1.01305179,604.54,603.9,2.97418065]
[1746615752045,1.01305179,604.53,603.9,2.97418065]
[1746615752547,1.01305179,604.52,603.9,2.97418065]
[1746615752849,1.01305179,604.51,603.9,2.97418065]
[1746615753344,1.01305179,604.5,603.9,2.97418065]
[1746615753944,1.01305179,604.49,603.9,2.97418065]
[1746615754349,1.01305179,604.48,603.9,2.97418065]
[1746615754545,1.01305179,604.47,603.9,2.97418065]
[1746615754750,1.01305179,604.46,603.9,2.97418065]
[1746615755049,1.01305179,604.45,603.9,2.97418065]
[1746615755550,0.28790311,605.06,603.9,2.97418065]
[1746615756349,1.01146979,605.05,603.9,2.97418065]
[1746615756750,1.01146979,605.04,603.9,2.97418065]
[1746615757145,1.01146979,605.03,603.9,2.97418065]
[1746615757652,0.33033281,605.45,603.9,2.97418065]
[1746615757653,1.01146979,605.02,603.9,2.97418065]
[1746615757951,1.01146979,605.01,603.9,2.97418065]
[1746615758550,1.01146979,605.0,603.9,2.97418065]
[1746615759450,1.01146979,604.99,603.9,2.97418065]
[1746615759851,1.01146979,604.98,603.9,2.97418065]
[1746615760550,1.01146979,604.97,603.9,2.97418065]
[1746615761152,1.01146979,604.96,603.9,2.97418065]
[1746615761851,1.01146979,604.95,603.9,2.97418065]
[1746615762351,1.01146979,604.94,603.9,2.97418065]
[1746615762846,0.28784476,605.06,603.9,2.97418065]
[1746615762847,1.01146979,604.93,603.9,2.97418065]
[1746615763446,1.01146979,604.92,603.9,2.97418065]
[1746615763851,1.01146979,604.91,603.9,2.97418065]
[1746615764654,1.01146979,604.9,603.9,2.97418065]
[1746615765753,1.01146979,604.89,603.9,2.97418065]
[1746615766559,1.01146979,604.88,603.9,2.97418065]
[1746615767452,1.01146979,604.87,603.9,2.97418065]
[1746615767857,1.01146979,604.86,603.9,2.97418065]
[1746615768458,1.01146979,604.85,603.9,2.97418065]
[1746615768960,1.01146979,604.84,603.9,2.97418065]
[1746615769353,1.01146979,604.83,603.9,2.97418065]
[1746615770160,1.01146979,604.82,603.9,2.97418065]
[1746615770657,1.01146979,604.81,603.9,2.97418065]
[1746615771463,1.01146979,604.8,603.9,2.97418065]
[1746615771762,1.01146979,604.79,603.9,2.97418065]
[1746615772261,1.01146979,604.78,603.9,2.97418065]
[1746615772762,1.01146979,604.77,603.9,2.97418065]
[1746615773063,1.01146979,604.76,603.9,2.97418065]
[1746615773463,1.01146979,604.75,603.9,2.97418065]
[1746615773964,1.01146979,604.74,603.9,2.97418065]
[1746615774164,1.01146979,604.73,603.9,2.97418065]
[1746615774764,1.01146979,604.72,603.9,2.97418065]
[1746615775665,1.01146979,604.71,603.9,2.97418065]
[1746615776461,1.01146979,604.7,603.9,2.97418065]
[1746615777065,1.01146979,604.69,603.9,2.97418065]
[1746615777465,1.01146979,604.68,603.9,2.97418065]
[1746615777964,1.01146979,604.67,603.9,2.97418065]
[1746615778566,1.01146979,604.66,603.9,2.97418065]
[1746615779161,1.01146979,604.65,603.9,2.97418065]
[1746615779967,1.01146979,604.64,603.9,2.97418065]
[1746615780568,1.01146979,604.63,603.9,2.97418065]
[1746615781264,1.01146979,604.62,603.9,2.97418065]
[1746615781663,1.01146979,604.61,603.9,2.97418065]
[1746615782368,1.01146979,604.6,603.9,2.97418065]
[1746615782869,1.01146979,604.59,603.9,2.97418065]
[1746615783868,1.01146979,604.58,603.9,2.97418065]
[1746615784263,1.01146979,604.57,603.9,2.97418065]
[1746615784667,1.01146979,604.56,603.9,2.97418065]
[1746615785068,1.01146979,604.55,603.9,2.97418065]
[1746615785471,1.01146979,604.54,603.9,2.15018065]
[1746615786166,1.01146979,604.53,603.9,2.15018065]
[1746615786871,1.01146979,604.52,603.9,2.15018065]
[1746615787571,1.01146979,604.51,603.9,2.15018065]
[1746615787872,1.01146979,604.5,603.9,2.15018065]
[1746615788273,1.01146979,604.49,603.9,2.71318065]
[1746615788670,1.01146979,604.48,603.9,2.71318065]
[1746615788966,1.01146979,604.47,603.9,2.71318065]
[1746615789671,1.01146979,604.46,603.9,2.71318065]
[1746615789971,1.01146979,604.45,603.9,2.71318065]
[1746615790373,1.01146979,604.44,603.9,2.71318065]
[1746615790976,0.33033281,605.45,603.9,2.71318065]
[1746615791471,1.01073979,605.44,603.9,2.71318065]
[1746615791677,1.01073979,605.43,603.9,2.71318065]
[1746615791976,1.60239629,605.43,603.9,2.71318065]
[1746615792173,1.31463245,605.42,603.9,2.71318065]
[1746615792370,1.01073979,605.42,603.9,2.71318065]
[1746615792575,1.31462963,605.41,603.9,2.71318065]
[1746615792878,0.30388984,605.4,603.9,2.71318065]
[1746615793072,1.01073979,605.39,603.9,2.71318065]
[1746615793475,0.59165962,605.38,603.9,2.71318065]
[1746615793772,0.30388984,605.37,603.9,2.71318065]
[1746615794076,1.01073979,605.36,603.9,2.71318065]
[1746615794477,1.01073979,605.35,603.9,2.71318065]
[1746615794779,1.31462963,605.34,603.9,2.71318065]
[1746615794978,1.31462963,605.33,603.9,2.71318065]
[1746615795277,1.31462963,605.32,603.9,2.71318065]
[1746615795578,1.01073979,605.31,603.9,2.71318065]
[1746615795776,1.01073979,605.3,603.9,2.71318065]
[1746615796077,0.30388984,605.29,603.9,2.71318065]
[1746615796377,1.01073979,605.28,603.9,2.71318065]
[1746615796976,1.31462963,605.27,603.9,2.71318065]
[1746615797476,1.01073979,605.27,603.9,2.71318065]
[1746615797671,1.31463933,605.26,603.9,2.71318065]
[1746615797875,1.01073979,605.25,603.9,2.71318065]
[1746615798378,1.01073979,605.24,603.9,2.71318065]
[1746615799573,1.01073979,605.23,603.9,2.71318065]
[1746615800380,1.01073979,605.22,603.9,2.71318065]
[1746615800979,1.01073979,605.21,603.9,2.71318065]
[1746615801180,0.3039046,605.2,603.9,2.71318065]
[1746615801381,1.01073979,605.19,603.9,2.71318065]
[1746615801676,1.31464439,605.18,603.9,2.71318065]
[1746615801981,0.3039046,605.17,603.9,2.71318065]
[1746615802582,1.01073979,605.16,603.9,2.71318065]
[1746615802883,1.31464439,605.15,603.9,2.71318065]
[1746615803084,1.01073979,605.15,603.9,2.71318065]
[1746615803279,1.01073979,605.14,603.9,2.71318065]
[1746615803683,1.01073979,605.13,603.9,2.71318065]
[1746615804082,1.01073979,605.12,603.9,2.71318065]
[1746615804584,1.01073979,605.11,603.9,2.71318065]
[1746615805187,1.01073979,605.1,603.9,2.71318065]
[1746615805888,1.01073979,605.09,603.9,2.71318065]
[1746615806490,1.01073979,605.08,603.9,2.71318065]
[1746615807190,1.01073979,605.07,603.9,2.71318065]
[1746615807691,1.01073979,605.06,603.9,2.71318065]
[1746615808392,1.01073979,605.05,603.9,2.71318065]
[1746615809291,1.01073979,605.04,603.9,2.71318065]
[1746615809690,1.01073979,605.03,603.9,2.71318065]
[1746615810384,1.01073979,605.02,603.9,2.71318065]
[1746615810793,1.01073979,605.01,603.9,2.71318065]
[1746615811294,1.01073979,605.0,603.9,2.71318065]
[1746615811594,1.01073979,604.99,603.9,2.71318065]
[1746615812194,1.01073979,604.98,603.9,2.71318065]
[1746615813095,1.01073979,604.97,603.9,2.71318065]
[1746615813496,1.01073979,604.96,603.9,2.71318065]
[1746615814394,1.01073979,604.95,603.9,2.71318065]
[1746615814892,1.01073979,604.94,603.9,2.71318065]
[1746615815597,1.01073979,604.93,603.9,2.71318065]
[1746615816398,1.01073979,604.92,603.9,2.71318065]
[1746615816893,1.01073979,604.91,603.9,2.71318065]
[1746615817298,1.01073979,604.9,603.9,2.71318065]
[1746615817998,1.01073979,604.89,603.9,2.71318065]
[1746615818798,1.01073979,604.88,603.9,2.71318065]
[1746615819495,1.01073979,604.87,603.9,2.71318065]
[1746615820300,1.01073979,604.86,603.9,2.71318065]
[1746615820899,1.01073979,604.85,603.9,2.71318065]
[1746615821197,1.01073979,604.84,603.9,2.71318065]
[1746615821500,1.01073979,604.83,603.9,2.71318065]
[1746615822401,1.01073979,605.06,603.9,2.71318065]
[1746615822901,1.01073979,605.05,603.9,2.71318065]
[1746615823601,0.28783405,605.07,603.9,2.71318065]
[1746615823602,1.01073979,605.04,603.9,2.71318065]
[1746615824101,1.01073979,605.03,603.9,2.71318065]
[1746615824503,1.01073979,605.02,603.9,2.71318065]
[1746615824703,1.01073979,605.01,603.9,2.71318065]
[1746615825802,1.01073979,605.0,603.9,2.71318065]
[1746615826001,1.01073979,604.99,603.9,2.71318065]
[1746615826602,1.01073979,604.98,603.9,2.71318065]
[1746615827002,1.01073979,604.97,603.9,2.71318065]
[1746615827899,1.01073979,604.96,603.9,2.71318065]
[1746615828605,1.01073979,604.95,603.9,2.71318065]
[1746615829205,1.01073979,604.94,603.9,2.71318065]
[1746615829602,1.01073979,604.93,603.9,2.71318065]
[1746615830101,1.01073979,604.92,603.9,2.71318065]
[1746615830806,1.01073979,605.12,603.9,2.71318065]
[1746615831206,1.01073979,605.11,603.9,2.71318065]
[1746615831904,1.01073979,605.1,603.9,2.71318065]
[1746615832505,1.01073979,605.09,603.9,2.71318065]
[1746615833205,1.01073979,605.08,603.9,2.71318065]
[1746615833506,1.01073979,605.07,603.9,2.71318065]
[1746615834207,1.01073979,605.06,603.9,2.71318065]
[1746615834508,1.01073979,605.05,603.9,2.71318065]
[1746615835307,1.01073979,605.04,603.9,2.71318065]
[1746615835704,1.01073979,605.03,603.9,2.71318065]
[1746615836409,1.01073979,605.02,603.9,2.71318065]
[1746615837205,1.01073979,605.01,603.9,2.71318065]
[1746615837607,1.01073979,605.0,603.9,2.71318065]
[1746615838410,1.01073979,604.99,603.9,2.71318065]
[1746615838809,1.01073979,604.98,603.9,2.71318065]
[1746615839210,1.01073979,604.97,603.9,2.71318065]
[1746615839811,1.01073979,604.96,603.9,2.71318065]
[1746615840306,1.01073979,604.95,603.9,2.71318065]
[1746615841006,1.01073979,604.94,603.9,2.71318065]
[1746615841712,1.01073979,604.93,603.9,2.71318065]
[1746615842311,1.01073979,604.92,603.9,2.71318065]
[1746615842814,1.01073979,604.91,603.9,2.71318065]
[1746615843314,1.01073979,604.9,603.9,2.71318065]
[1746615843615,1.01073979,604.89,603.9,2.71318065]
[1746615843914,1.01073979,604.88,603.9,2.71318065]
[1746615844309,1.01073979,604.87,603.9,2.71318065]
[1746615845015,1.01073979,604.86,603.9,2.71318065]
[1746615845717,1.01073979,604.85,603.9,2.71318065]
[1746615846017,1.01073979,604.84,603.9,2.71318065]
[1746615846517,1.01073979,604.83,603.9,2.71318065]
[1746615847417,1.01073979,604.82,603.9,2.71318065]
[1746615848018,1.01073979,604.81,603.9,2.71318065]
[1746615848421,1.01073979,604.8,603.9,2.71318065]
[1746615848819,1.01073979,604.79,603.9,2.71318065]
[1746615849220,1.01073979,604.78,603.9,2.71318065]
[1746615850020,1.01073979,604.77,603.9,2.71318065]
[1746615850723,1.01073979,604.76,603.9,2.71318065]
[1746615851122,1.01073979,604.75,603.9,2.71318065]
[1746615851618,1.01073979,604.74,603.9,2.71318065]
[1746615852122,1.01073979,604.73,603.9,2.71318065]
[1746615852820,1.01073979,604.72,603.9,2.71318065]
[1746615853026,1.01073979,604.71,603.9,2.71318065]
[1746615853922,1.01073979,604.7,603.9,2.71318065]
[1746615854724,1.01073979,604.69,603.9,2.71318065]
[1746615855124,1.01073979,604.68,603.9,2.71318065]
[1746615855824,1.01073979,604.67,603.9,2.71318065]
[1746615856326,1.01073979,604.66,603.9,2.71318065]
[1746615856826,1.01073979,604.65,603.9,2.71318065]
[1746615857325,1.01073979,604.64,603.9,2.71318065]
[1746615857624,1.01073979,604.63,603.9,2.71318065]
[1746615858329,1.01073979,604.62,603.9,2.71318065]
[1746615858833,1.01073979,604.61,603.9,2.71318065]
[1746615859129,1.01073979,604.6,603.9,2.71318065]
[1746615859730,1.01073979,604.59,603.9,2.71318065]
[1746615860332,1.01073979,604.58,603.9,2.71318065]
[1746615860826,1.01073979,604.57,603.9,2.71318065]
[1746615861630,1.01073979,604.56,603.9,2.71318065]
[1746615862132,0.33033281,605.45,603.9,2.71318065]
[1746615862427,0.28786381,605.19,603.9,2.71318065]
[1746615862827,1.00412833,605.18,603.9,2.71318065]
[1746615863232,1.00412833,605.17,603.9,2.71318065]
[1746615863529,1.00412833,605.16,603.9,2.71318065]
[1746615863834,1.00412833,605.15,603.9,2.71318065]
[1746615864535,1.00412833,605.14,603.9,2.71318065]
[1746615865031,1.00412833,605.13,603.9,2.71318065]
[1746615865436,1.00412833,605.12,603.9,2.71318065]
[1746615865937,1.00412833,605.11,603.9,2.71318065]
[1746615866437,1.00412833,605.1,603.9,2.71318065]
[1746615866838,1.00412833,605.09,603.9,2.71318065]
[1746615869540,1.00412833,605.08,603.9,2.71318065]
[1746615869936,1.00412833,605.07,603.9,2.71318065]
[1746615870441,1.00412833,605.06,603.9,1.56318065]
[1746615870636,1.00412833,605.06,603.9,0.33118065]
[1746615870837,1.00412833,605.05,603.9,0.33118065]
[1746615871140,1.00412833,605.04,603.9,0.33118065]
[1746615871641,1.00412833,605.03,603.9,0.33118065]
[1746615872540,1.00412833,605.02,603.9,0.33118065]
[1746615873141,1.00412833,605.01,603.9,0.33118065]
[1746615873534,1.00412833,605.0,603.9,0.33118065]
[1746615873940,1.00412833,604.99,603.9,0.33118065]
[1746615874842,1.00412833,604.98,603.9,0.33118065]
[1746615875341,1.00412833,604.97,603.9,0.33118065]
[1746615875642,1.00412833,604.96,603.9,0.33118065]
[1746615876238,1.00412833,604.95,603.9,0.33118065]
[1746615877141,1.00412833,604.94,603.9,0.33118065]
[1746615877442,1.00412833,604.93,603.9,0.33118065]
[1746615877839,1.00412833,604.92,603.9,0.33118065]
[1746615878442,1.00412833,604.91,603.9,0.33118065]
[1746615879043,1.00412833,604.9,603.9,0.33118065]
[1746615879543,1.00412833,604.89,603.9,0.33118065]
[1746615880041,1.00412833,604.88,603.9,0.33118065]
[1746615880544,0.33033281,605.45,603.9,0.33118065]
[1746615880545,1.00412833,604.87,603.9,0.33118065]
[1746615880945,1.00412833,604.86,603.9,0.33118065]
[1746615881348,1.00412833,604.85,603.9,0.33118065]